fUSD/lending_fUSD_20260202
["ID","MTS","AMOUNT","RATE_DAILY","PERIOD"]
[404321981,1770058242351,-250.0,0.000119,2]
[404321982,1770058242360,-1864.0,0.00011938,2]
[404321983,1770058242370,-806.0,0.00011938,2]
[404321984,1770058242380,-546.41767712,0.00011942,2]
[404321985,1770058242390,-1215.0,0.00011942,2]
[404321986,1770058242403,-682.0,0.00011942,2]
[404321987,1770058242414,-563.0,0.00011942,2]
[404321988,1770058242423,-311.43207959,0.00011951,2]
[404321989,1770058242433,-523.0,0.00011951,2]
[404321990,1770058242443,-546.0,0.00011951,2]
[404321991,1770058242452,-217.15233878,0.00011955,2]
[404321992,1770058242462,-277.826669,0.00011986,2]
[404321993,1770058242472,-1864.0,0.00011993,2]
[404321994,1770058242482,-806.0,0.00011993,2]
[404321995,1770058242492,-1215.0,0.00011997,2]
[404321996,1770058242501,-682.0,0.00011997,2]
[404321997,1770058242511,-563.0,0.00011997,2]
[404321998,1770058242521,-523.0,0.00012005,2]
[404321999,1770058242530,-546.0,0.00012005,2]
[404322000,1770058242540,-225.18697532,0.0001201,2]
[404322001,1770058242549,-1864.0,0.00012047,2]
[404322002,1770058242559,-806.0,0.00012047,2]
[404322003,1770058242568,-500.0,0.00012052,2]
[404322004,1770058242577,-1215.0,0.00012052,2]
[404322005,1770058242587,-682.0,0.00012052,2]
[404322006,1770058242598,-563.0,0.00012052,2]
[404322007,1770058242607,-523.0,0.0001206,2]
[404322008,1770058242616,-546.0,0.0001206,2]
[404322009,1770058242626,-233.51889341,0.00012065,2]
[404322010,1770058242636,-440480.5041622,0.00012076,2]
[404322011,1770058242646,-3524.94248644,0.00012086,2]
[404322012,1770058242657,-1884.0,0.00012102,2]
[404322013,1770058242668,-821.05876183,0.00012102,2]
[404322014,1770058242678,-1215.0,0.00012107,2]
[404322015,1770058242688,-682.0,0.00012107,2]
[404322017,1770058242698,-563.0,0.00012107,2]
[404322018,1770058242708,-523.0,0.00012115,2]
[404322020,1770058242717,-546.0,0.00012115,2]
[404322021,1770058242727,-441.47,0.00012115,2]
[404322022,1770058242737,-242.15909246,0.0001212,2]
[404322023,1770058242746,-200.0,0.0001216,2]
[404322024,1770058242756,-500.0,0.0001216,2]
[404322025,1770058242767,-200.0,0.0001216,2]
[404322026,1770058242778,-1215.0,0.00012161,2]
[404322027,1770058242787,-682.0,0.00012161,2]
[404322028,1770058242797,-563.0,0.00012161,2]
[404322029,1770058242808,-523.0,0.0001217,2]
[404322030,1770058242818,-546.0,0.0001217,2]
[404322031,1770058242827,-251.11897888,0.00012175,2]
[404322032,1770058242837,-1219.22922749,0.00012216,2]
[404322033,1770058242848,-694.19168007,0.00012216,2]
[404322034,1770058242857,-573.19208607,0.00012216,2]
[404322035,1770058242867,-523.0,0.00012224,2]
[404322036,1770058242877,-546.0,0.00012224,2]
[404322037,1770058242887,-260.4103811,0.0001223,2]
[404322038,1770058242897,-535.0,0.00012279,2]
[404322039,1770058242907,-554.58574062,0.00012279,2]
[404322040,1770058242917,-270.0455652,0.00012285,2]
[404322041,1770058242928,-848.50072055,0.00012287,2]
[404322042,1770058242937,-151.5908,0.000123,2]
[404322043,1770058242947,-6892.6608441,0.00012309,2]
[404322044,1770058242957,-54254.59313589,0.00012311,2]
[404322045,1770058242969,-222.7,0.00012324,2]
[404322046,1770058242979,-500.0,0.00012326,2]
[404322047,1770058242990,-280.03725112,0.0001234,2]
[404322048,1770058242999,-10000.0,0.00012348,2]
[404322049,1770058243010,-58089.05272456,0.00012377,2]
[404322050,1770058243019,-441.47,0.00012389,2]
[404322051,1770058243031,-290.39862941,0.00012395,2]
[404322052,1770058243040,-151.0,0.00012448,2]
[404322053,1770058243050,-181.08010149,0.00012448,2]
[404322054,1770058243059,-276.99112212,0.00012448,2]
[404322055,1770058243069,-1481.23780761,0.00012448,2]
[404322056,1770058243078,-217.15233878,0.00012448,2]
[404322057,1770058243087,-301.1433787,0.0001245,2]
[404322058,1770058243097,-7803.81,0.00012472,2]
[404322059,1770058243106,-500.0,0.000126,2]
[404322060,1770058243116,-433.0,0.00012649,2]
[404322061,1770058243126,-441.47,0.00012663,2]
[404322062,1770058243137,-200.0,0.00012708,2]
[404322063,1770058243148,-500.0,0.00012708,2]
[404322064,1770058243160,-208.65826531,0.00012708,2]
[404322065,1770058243170,-1537.960518,0.0001271,2]
[404322066,1770058243181,-456.97,0.00012712,2]
[404322067,1770058243192,-2351.0,0.00012723,2]
[404322068,1770058243203,-1000.0,0.00012784,2]
[404322069,1770058243212,-3177.4196175,0.00012828,2]
[404322070,1770058243222,-3177.4196175,0.00012828,2]
[404322071,1770058243232,-500.0,0.00012874,2]
[404322072,1770058243242,-1617.53493796,0.00012881,2]
[404322073,1770058243253,-160.29771235,0.00012881,2]
[404322074,1770058243264,-200.0,0.000129,2]
[404322075,1770058243274,-1249.83318951,0.00012911,2]
[404322076,1770058243284,-27314.73,0.00012912,2]
[404322077,1770058243294,-441.47,0.00012937,2]
[404322078,1770058243304,-230.16041742,0.00012996,2]
[404322079,1770058243314,-187.78006525,0.00012996,2]
[404322080,1770058243324,-1536.04360649,0.00012996,2]
[404322081,1770058243335,-225.18697532,0.00012996,2]
[404322082,1770058243347,-200.0,0.00013029,2]
[404322083,1770058243357,-54254.59313589,0.00013109,2]
[404322084,1770058243366,-500.0,0.00013148,2]
[404322085,1770058243377,-3524.94248644,0.00013156,2]
[404322086,1770058243388,-200.0,0.00013159,2]
[404322087,1770058243400,-58089.05272456,0.00013166,2]
[404322088,1770058243411,-441.47,0.00013211,2]
[404322089,1770058243422,-200.0,0.00013256,2]
[404322090,1770058243432,-500.0,0.00013256,2]
[404322091,1770058243443,-334.5472959,0.00013269,2]
[404322092,1770058243452,-200.0,0.00013291,2]
[404322093,1770058243462,-500.0,0.00013422,2]
[404322094,1770058243472,-200.0,0.00013424,2]
[404322095,1770058243483,-222.7,0.00013444,2]
[404322096,1770058243492,-441.47,0.00013485,2]
[404322097,1770058243502,-194.72792766,0.00013544,2]
[404322098,1770058243512,-1592.87721993,0.00013544,2]
[404322099,1770058243521,-233.51889341,0.00013544,2]
[404322100,1770058243531,-440480.5041622,0.00013636,2]
[404322101,1770058243541,-3333.0,0.00013671,2]
[404322103,1770058243551,-500.0,0.00013696,2]
[404322105,1770058243562,-272.39317181,0.00013698,2]
[404322106,1770058243574,-500.0,0.00013698,2]
[404322109,1770058243583,-500.0,0.00013698,2]
[404322112,1770058243595,-500.0,0.00013698,2]
[404322115,1770058243605,-500.0,0.00013698,2]
[404322119,1770058243614,-1214.96,0.00013698,2]
[404322121,1770058243623,-1214.96,0.00013698,2]
[404322123,1770058243633,-1214.96,0.00013698,2]
[404322125,1770058243643,-1214.96,0.00013698,2]
[404322127,1770058243653,-1214.96,0.00013698,2]
[404322129,1770058243662,-1214.96,0.00013698,2]
[404322131,1770058243671,-1214.96,0.00013698,2]
[404322132,1770058243681,-1214.96,0.00013698,2]
[404322133,1770058243690,-1214.96,0.00013698,2]
[404322134,1770058243699,-1214.96,0.00013698,2]
[404322135,1770058243709,-1214.96,0.00013698,2]
[404322136,1770058243718,-1214.96,0.00013698,2]
[404322137,1770058243729,-1214.96,0.00013698,2]
[404322138,1770058243738,-1214.96,0.00013698,2]
[404322139,1770058243748,-1214.96,0.00013698,2]
[404322140,1770058243758,-1214.96,0.00013698,2]
[404322141,1770058243767,-1214.96,0.00013698,2]
[404322142,1770058243778,-1214.96,0.00013698,2]
[404322143,1770058243788,-1214.96,0.00013698,2]
[404322144,1770058243798,-1214.96,0.00013698,2]
[404322145,1770058243808,-1214.96,0.00013698,2]
[404322146,1770058243817,-1214.96,0.00013698,2]
[404322147,1770058243827,-1214.96,0.00013698,2]
[404322148,1770058243836,-1215.06856515,0.00013698,2]
[404322149,1770058243845,-500.0,0.00013698,2]
[404322150,1770058243856,-500.0,0.00013698,2]
[404322151,1770058243866,-500.0,0.00013698,2]
[404322152,1770058243877,-500.0,0.00013698,2]
[404322153,1770058243887,-500.0,0.00013698,2]
[404322154,1770058243897,-500.0,0.00013698,2]
[404322155,1770058243907,-500.0,0.00013698,2]
[404322156,1770058243918,-500.0,0.00013698,2]
[404322157,1770058243927,-500.0,0.00013698,2]
[404322158,1770058243937,-500.0,0.00013698,2]
[404322159,1770058243947,-500.0,0.00013698,2]
[404322160,1770058243957,-500.0,0.00013698,2]
[404322161,1770058243968,-500.0,0.00013698,2]
[404322162,1770058243978,-500.0,0.00013698,2]
[404322163,1770058243988,-500.0,0.00013698,2]
[404322164,1770058243999,-607.97214338,0.00013698,2]
[404322165,1770058244009,-646.39442601,0.00013698,2]
[404322166,1770058244019,-619.1,0.00013698,2]
[404322167,1770058244030,-619.1,0.00013698,2]
[404322168,1770058244040,-619.1,0.00013698,2]
[404322169,1770058244049,-619.1,0.00013698,2]
[404322170,1770058244058,-619.1,0.00013698,2]
[404322171,1770058244068,-619.1,0.00013698,2]
[404322172,1770058244078,-619.1,0.00013698,2]
[404322173,1770058244088,-619.1,0.00013698,2]
[404322174,1770058244098,-619.1,0.00013698,2]
[404322175,1770058244108,-619.1,0.00013698,2]
[404322176,1770058244118,-619.1,0.00013698,2]
[404322177,1770058244127,-619.1,0.00013698,2]
[404322178,1770058244136,-619.1,0.00013698,2]
[404322179,1770058244146,-619.1,0.00013698,2]
[404322180,1770058244157,-619.1,0.00013698,2]
[404322181,1770058244167,-619.1,0.00013698,2]
[404322182,1770058244178,-619.1,0.00013698,2]
[404322183,1770058244188,-619.1,0.00013698,2]
[404322184,1770058244199,-619.1,0.00013698,2]
[404322185,1770058244208,-619.1,0.00013698,2]
[404322186,1770058244218,-619.1,0.00013698,2]
[404322187,1770058244227,-619.1,0.00013698,2]
[404322188,1770058244237,-619.1,0.00013698,2]
[404322189,1770058244248,-619.11279054,0.00013698,2]
[404322190,1770058244259,-596.97,0.00013698,2]
[404322191,1770058244269,-596.97,0.00013698,2]
[404322192,1770058244279,-596.97,0.00013698,2]
[404322193,1770058244290,-596.97,0.00013698,2]
[404322194,1770058244300,-596.97,0.00013698,2]
[404322195,1770058244311,-596.97,0.00013698,2]
[404322196,1770058244321,-596.97,0.00013698,2]
[404322197,1770058244331,-596.97,0.00013698,2]
[404322198,1770058244342,-596.97,0.00013698,2]
[404322199,1770058244356,-596.97,0.00013698,2]
[404322200,1770058244365,-596.97,0.00013698,2]
[404322201,1770058244375,-596.97,0.00013698,2]
[404322202,1770058244384,-596.97,0.00013698,2]
[404322203,1770058244394,-596.97,0.00013698,2]
[404322204,1770058244405,-596.97,0.00013698,2]
[404322205,1770058244415,-596.97,0.00013698,2]
[404322206,1770058244487,-596.97,0.00013698,2]
[404322207,1770058244497,-596.97,0.00013698,2]
[404322208,1770058244507,-596.97,0.00013698,2]
[404322209,1770058244516,-596.97,0.00013698,2]
[404322210,1770058244530,-596.97,0.00013698,2]
[404322211,1770058244540,-596.97,0.00013698,2]
[404322212,1770058244551,-596.97,0.00013698,2]
[404322213,1770058244561,-597.07967228,0.00013698,2]
[404322214,1770058244572,-500.0,0.00013698,2]
[404322215,1770058244581,-500.0,0.00013698,2]
[404322216,1770058244592,-500.0,0.00013698,2]
[404322217,1770058244602,-500.0,0.00013698,2]
[404322218,1770058244611,-500.0,0.00013698,2]
[404322219,1770058244622,-500.0,0.00013698,2]
[404322220,1770058244631,-334.5135457,0.00013698,2]
[404322221,1770058244641,-516.48312948,0.00013698,2]
[404322222,1770058244650,-500.0,0.00013698,2]
[404322223,1770058244659,-500.0,0.00013698,2]
[404322224,1770058244668,-500.0,0.00013698,2]
[404322225,1770058244677,-500.0,0.00013698,2]
[404322226,1770058244687,-500.0,0.00013698,2]
[404322227,1770058244697,-614.04732503,0.00013698,2]
[404322228,1770058244706,-500.0,0.00013698,2]
[404322229,1770058244716,-500.0,0.00013698,2]
[404322230,1770058244729,-500.0,0.00013698,2]
[404322231,1770058244738,-500.0,0.00013698,2]
[404322232,1770058244749,-500.0,0.00013698,2]
[404322233,1770058244759,-500.0,0.00013698,2]
[404322234,1770058244768,-500.0,0.00013698,2]
[404322235,1770058244778,-500.0,0.00013698,2]
[404322236,1770058244787,-591.08774682,0.00013698,2]
[404322237,1770058244797,-500.0,0.00013698,2]
[404322238,1770058244807,-500.0,0.00013698,2]
[404322239,1770058244816,-500.0,0.00013698,2]
[404322240,1770058244825,-500.0,0.00013698,2]
[404322241,1770058244835,-500.0,0.00013698,2]
[404322242,1770058244844,-748.74,0.00013698,2]
[404322243,1770058244853,-500.0,0.00013698,2]
[404322244,1770058244863,-748.74,0.00013698,2]
[404322245,1770058244872,-500.0,0.00013698,2]
[404322246,1770058244883,-748.74,0.00013698,2]
[404322247,1770058244893,-748.74,0.00013698,2]
[404322248,1770058244902,-500.0,0.00013698,2]
[404322249,1770058244911,-748.74,0.00013698,2]
[404322250,1770058244920,-500.0,0.00013698,2]
[404322251,1770058244932,-748.74,0.00013698,2]
[404322252,1770058244942,-500.0,0.00013698,2]
[404322253,1770058244951,-500.0,0.00013698,2]
[404322254,1770058244960,-748.74,0.00013698,2]
[404322255,1770058244970,-500.0,0.00013698,2]
[404322256,1770058244979,-748.74,0.00013698,2]
[404322257,1770058244988,-748.74,0.00013698,2]
[404322258,1770058244997,-500.0,0.00013698,2]
[404322259,1770058245006,-748.74,0.00013698,2]
[404322260,1770058245016,-366.58671911,0.00013698,2]
[404322261,1770058245025,-748.74,0.00013698,2]
[404322262,1770058245034,-748.74,0.00013698,2]
[404322263,1770058245045,-748.74,0.00013698,2]
[404322264,1770058245055,-748.74,0.00013698,2]
[404322265,1770058245065,-748.74,0.00013698,2]
[404322266,1770058245075,-748.74,0.00013698,2]
[404322267,1770058245085,-748.74,0.00013698,2]
[404322268,1770058245096,-748.74,0.00013698,2]
[404322269,1770058245106,-748.74,0.00013698,2]
[404322270,1770058245115,-748.74,0.00013698,2]
[404322271,1770058245124,-748.74,0.00013698,2]
[404322272,1770058245135,-748.74,0.00013698,2]
[404322273,1770058245144,-748.74,0.00013698,2]
[404322274,1770058245154,-748.75883379,0.00013698,2]
[404322275,1770058245164,-500.0,0.00013698,2]
[404322276,1770058245174,-500.0,0.00013698,2]
[404322277,1770058245184,-500.0,0.00013698,2]
[404322278,1770058245194,-500.0,0.00013698,2]
[404322279,1770058245204,-500.0,0.00013698,2]
[404322280,1770058245215,-500.0,0.00013698,2]
[404322281,1770058245224,-500.0,0.00013698,2]
[404322282,1770058245235,-500.0,0.00013698,2]
[404322283,1770058245245,-500.0,0.00013698,2]
[404322284,1770058245254,-500.0,0.00013698,2]
[404322285,1770058245263,-500.0,0.00013698,2]
[404322286,1770058245272,-500.0,0.00013698,2]
[404322287,1770058245282,-185.13964732,0.00013698,2]
[404322288,1770058245291,-500.0,0.00013698,2]
[404322289,1770058245300,-500.0,0.00013698,2]
[404322290,1770058245317,-500.0,0.00013698,2]
[404322291,1770058245328,-500.0,0.00013698,2]
[404322292,1770058245340,-500.0,0.00013698,2]
[404322293,1770058245350,-500.0,0.00013698,2]
[404322294,1770058245360,-500.0,0.00013698,2]
[404322295,1770058245370,-500.0,0.00013698,2]
[404322296,1770058245380,-500.0,0.00013698,2]
[404322297,1770058245392,-500.0,0.00013698,2]
[404322298,1770058245405,-500.0,0.00013698,2]
[404322299,1770058245414,-500.0,0.00013698,2]
[404322300,1770058245424,-500.0,0.00013698,2]
[404322301,1770058245433,-500.0,0.00013698,2]
[404322302,1770058245442,-500.0,0.00013698,2]
[404322303,1770058245452,-500.0,0.00013698,2]
[404322304,1770058245463,-500.0,0.00013698,2]
[404322305,1770058245476,-500.0,0.00013698,2]
[404322306,1770058245485,-500.0,0.00013698,2]
[404322307,1770058245494,-500.0,0.00013698,2]
[404322308,1770058245504,-440.42527963,0.00013698,2]
[404322309,1770058245513,-500.0,0.00013698,2]
[404322310,1770058245523,-500.0,0.00013698,2]
[404322311,1770058245532,-500.0,0.00013698,2]
[404322312,1770058245542,-500.0,0.00013698,2]
[404322313,1770058245552,-500.0,0.00013698,2]
[404322314,1770058245562,-607.62859807,0.00013698,2]
[404322315,1770058245573,-520.9392261,0.00013698,2]
[404322316,1770058245583,-500.0,0.00013698,2]
[404322317,1770058245592,-500.0,0.00013698,2]
[404322318,1770058245601,-500.0,0.00013698,2]
[404322319,1770058245611,-469.64985738,0.00013698,2]
[404322321,1770058245620,-1206.79,0.00013698,2]
[404322323,1770058245630,-1206.79,0.00013698,2]
[404322325,1770058245639,-1206.79,0.00013698,2]
[404322327,1770058245649,-1206.79,0.00013698,2]
[404322328,1770058245658,-1206.79,0.00013698,2]
[404322329,1770058245668,-1206.79,0.00013698,2]
[404322330,1770058245678,-1206.79,0.00013698,2]
[404322331,1770058245689,-1206.79,0.00013698,2]
[404322332,1770058245699,-1206.79,0.00013698,2]
[404322333,1770058245708,-1206.79,0.00013698,2]
[404322334,1770058245718,-1206.79,0.00013698,2]
[404322335,1770058245728,-1206.79,0.00013698,2]
[404322336,1770058245738,-1206.79,0.00013698,2]
[404322337,1770058245748,-1206.79,0.00013698,2]
[404322338,1770058245758,-1206.79,0.00013698,2]
[404322339,1770058245769,-1206.79,0.00013698,2]
[404322340,1770058245779,-1206.79,0.00013698,2]
[404322341,1770058245788,-1206.79,0.00013698,2]
[404322342,1770058245797,-1206.79,0.00013698,2]
[404322343,1770058245806,-1206.79,0.00013698,2]
[404322344,1770058245816,-1206.79,0.00013698,2]
[404322345,1770058245825,-1206.79,0.00013698,2]
[404322346,1770058245835,-1206.79,0.00013698,2]
[404322347,1770058245844,-1206.88314617,0.00013698,2]
[404322348,1770058245854,-500.0,0.00013698,2]
[404322350,1770058245863,-500.0,0.00013698,2]
[404322351,1770058245872,-500.0,0.00013698,2]
[404322352,1770058245882,-500.0,0.00013698,2]
[404322353,1770058245891,-500.0,0.00013698,2]
[404322354,1770058245900,-500.0,0.00013698,2]
[404322355,1770058245909,-500.0,0.00013698,2]
[404322356,1770058245918,-500.0,0.00013698,2]
[404322357,1770058245928,-500.0,0.00013698,2]
[404322358,1770058245937,-500.0,0.00013698,2]
[404322359,1770058245947,-500.0,0.00013698,2]
[404322360,1770058245956,-500.0,0.00013698,2]
[404322361,1770058245967,-312.15594151,0.00013698,2]
[404322362,1770058245976,-605.88,0.00013698,2]
[404322363,1770058245986,-605.88,0.00013698,2]
[404322364,1770058245998,-605.88,0.00013698,2]
[404322365,1770058246008,-605.88,0.00013698,2]
[404322366,1770058246018,-605.88,0.00013698,2]
[404322367,1770058246027,-605.88,0.00013698,2]
[404322368,1770058246038,-605.88,0.00013698,2]
[404322369,1770058246048,-605.88,0.00013698,2]
[404322370,1770058246059,-605.88,0.00013698,2]
[404322371,1770058246070,-605.88,0.00013698,2]
[404322372,1770058246080,-605.88,0.00013698,2]
[404322373,1770058246091,-605.88,0.00013698,2]
[404322374,1770058246101,-605.88,0.00013698,2]
[404322375,1770058246110,-605.88,0.00013698,2]
[404322376,1770058246122,-605.88,0.00013698,2]
[404322377,1770058246131,-605.88,0.00013698,2]
[404322378,1770058246140,-605.88,0.00013698,2]
[404322379,1770058246151,-605.88,0.00013698,2]
[404322380,1770058246161,-605.88,0.00013698,2]
[404322381,1770058246173,-605.88,0.00013698,2]
[404322382,1770058246185,-605.88,0.00013698,2]
[404322383,1770058246194,-605.88,0.00013698,2]
[404322384,1770058246204,-605.88,0.00013698,2]
[404322385,1770058246213,-606.04317558,0.00013698,2]
[404322386,1770058246224,-586.19962979,0.00013698,2]
[404322387,1770058246235,-500.0,0.00013698,2]
[404322388,1770058246246,-500.0,0.00013698,2]
[404322389,1770058246256,-500.0,0.00013698,2]
[404322390,1770058246265,-500.0,0.00013698,2]
[404322391,1770058246274,-500.0,0.00013698,2]
[404322392,1770058246284,-500.0,0.00013698,2]
[404322393,1770058246294,-500.0,0.00013698,2]
[404322394,1770058246304,-507.90611429,0.00013698,2]
[404322395,1770058246313,-500.0,0.00013698,2]
[404322396,1770058246323,-500.0,0.00013698,2]
[404322397,1770058246332,-500.0,0.00013698,2]
[404322398,1770058246341,-500.0,0.00013698,2]
[404322399,1770058246350,-500.0,0.00013698,2]
[404322400,1770058246359,-500.0,0.00013698,2]
[404322401,1770058246368,-500.0,0.00013698,2]
[404322402,1770058246377,-500.0,0.00013698,2]
[404322403,1770058246386,-500.0,0.00013698,2]
[404322404,1770058246396,-500.0,0.00013698,2]
[404322405,1770058246409,-500.0,0.00013698,2]
[404322406,1770058246420,-500.0,0.00013698,2]
[404322407,1770058246431,-500.0,0.00013698,2]
[404322408,1770058246440,-500.0,0.00013698,2]
[404322409,1770058246453,-500.0,0.00013698,2]
[404322410,1770058246463,-500.0,0.00013698,2]
[404322411,1770058246474,-500.0,0.00013698,2]
[404322412,1770058246484,-500.0,0.00013698,2]
[404322413,1770058246494,-500.0,0.00013698,2]
[404322415,1770058246503,-500.0,0.00013698,2]
[404322417,1770058246514,-500.0,0.00013698,2]
[404322418,1770058246524,-500.0,0.00013698,2]
[404322419,1770058246533,-500.0,0.00013698,2]
[404322420,1770058246543,-500.0,0.00013698,2]
[404322421,1770058246553,-500.0,0.00013698,2]
[404322422,1770058246562,-500.0,0.00013698,2]
[404322423,1770058246572,-500.0,0.00013698,2]
[404322424,1770058246582,-500.0,0.00013698,2]
[404322425,1770058246592,-500.0,0.00013698,2]
[404322426,1770058246603,-500.0,0.00013698,2]
[404322427,1770058246612,-786.61,0.00013698,2]
[404322428,1770058246621,-786.61,0.00013698,2]
[404322429,1770058246631,-786.61,0.00013698,2]
[404322430,1770058246641,-786.61,0.00013698,2]
[404322431,1770058246650,-786.61,0.00013698,2]
[404322432,1770058246660,-786.61,0.00013698,2]
[404322433,1770058246669,-786.61,0.00013698,2]
[404322434,1770058246679,-786.61,0.00013698,2]
[404322435,1770058246688,-786.61,0.00013698,2]
[404322436,1770058246698,-786.61,0.00013698,2]
[404322437,1770058246707,-786.61,0.00013698,2]
[404322438,1770058246716,-786.61,0.00013698,2]
[404322439,1770058246725,-786.61,0.00013698,2]
[404322440,1770058246734,-786.61,0.00013698,2]
[404322441,1770058246744,-786.61,0.00013698,2]
[404322442,1770058246753,-786.61,0.00013698,2]
[404322443,1770058246763,-786.61,0.00013698,2]
[404322444,1770058246772,-786.61,0.00013698,2]
[404322445,1770058246781,-786.61,0.00013698,2]
[404322446,1770058246790,-786.61,0.00013698,2]
[404322447,1770058246799,-786.61,0.00013698,2]
[404322448,1770058246809,-786.61,0.00013698,2]
[404322449,1770058246819,-786.61,0.00013698,2]
[404322450,1770058246828,-786.67526317,0.00013698,2]
[404322451,1770058246837,-535.53919898,0.00013698,2]
[404322452,1770058246847,-500.0,0.00013698,2]
[404322453,1770058246857,-500.0,0.00013698,2]
[404322454,1770058246866,-500.0,0.00013698,2]
[404322455,1770058246876,-500.0,0.00013698,2]
[404322456,1770058246885,-500.0,0.00013698,2]
[404322457,1770058246895,-500.0,0.00013698,2]
[404322458,1770058246903,-504.58121564,0.00013698,2]
[404322459,1770058246912,-500.0,0.00013698,2]
[404322460,1770058246921,-500.0,0.00013698,2]
[404322461,1770058246931,-500.0,0.00013698,2]
[404322462,1770058246940,-500.0,0.00013698,2]
[404322463,1770058246949,-500.0,0.00013698,2]
[404322464,1770058246958,-500.0,0.00013698,2]
[404322465,1770058246967,-500.0,0.00013698,2]
[404322466,1770058246976,-500.0,0.00013698,2]
[404322467,1770058246985,-512.55184272,0.00013698,2]
[404322468,1770058246994,-500.0,0.00013698,2]
[404322469,1770058247003,-500.0,0.00013698,2]
[404322470,1770058247012,-500.0,0.00013698,2]
[404322471,1770058247022,-500.0,0.00013698,2]
[404322472,1770058247031,-500.0,0.00013698,2]
[404322473,1770058247041,-500.0,0.00013698,2]
[404322474,1770058247050,-500.0,0.00013698,2]
[404322475,1770058247059,-500.0,0.00013698,2]
[404322476,1770058247068,-500.0,0.00013698,2]
[404322477,1770058247077,-500.0,0.00013698,2]
[404322478,1770058247086,-500.0,0.00013698,2]
[404322479,1770058247095,-500.0,0.00013698,2]
[404322480,1770058247105,-500.0,0.00013698,2]
[404322481,1770058247113,-502.06664745,0.00013698,2]
[404322482,1770058247122,-271.97,0.00013699,2]
[404322483,1770058247132,-226.64,0.00013699,2]
[404322484,1770058247141,-188.87,0.00013699,2]
[404322485,1770058247151,-29999.99,0.00013699,2]
[404322486,1770058247160,-9999.99,0.00013699,2]
[404322487,1770058247170,-19999.99,0.00013699,2]
[404322488,1770058247180,-27680.2,0.00013699,2]
[404322489,1770058247189,-2538.13,0.000137,2]
[404322490,1770058247199,-2538.13,0.000137,2]
[404322491,1770058247208,-2538.13,0.000137,2]
[404322492,1770058247218,-2538.13,0.000137,2]
[404322493,1770058247228,-2538.13,0.000137,2]
[404322494,1770058247239,-151.0,0.00013727,2]
[404322495,1770058247250,-441.47,0.00013759,2]
[404322496,1770058247261,-180.11,0.0001376,2]
[404322497,1770058247272,-151.0,0.00013797,2]
[404322498,1770058247282,-151.0,0.00013797,2]
[404322499,1770058247292,-200.0,0.00013804,2]
[404322500,1770058247303,-500.0,0.00013804,2]
[404322501,1770058247314,-186.58,0.0001383,2]
[404322502,1770058247326,-3177.4196175,0.00013842,2]
[404322503,1770058247337,-170.84504992,0.00013855,2]
[404322504,1770058247347,-736.0,0.0001388,2]
[404322505,1770058247358,-456.97,0.00013889,2]
[404322506,1770058247367,-250.0,0.00013895,2]